[Event "Titled Tuesday Blitz April 4 Early 2023"]
[White "Berezin, Viktor"]
[Black "Shubenkova, Veronika"]
[WhiteFideId "14107872"]
[BlackFideId "44124040"]
[WhiteElo "2310"]
[BlackElo "2027"]
[Result "0-1"]
[Round "08"]
[TimeControl "180+2"]
[Date "2023.04.04"]
[WhiteClock "0:00:20"]
[BlackClock "0:01:13"]

1. d4 {[%clk 0:03:00]}  d5 {[%clk 0:02:58]} 2. c4 {[%clk 0:03:01]}  e6 {[%clk 0:02:58]} 3. Nf3 {[%clk 0:02:59]}  Nf6 {[%clk 0:02:58]} 4. g3 {[%clk 0:03:00]}  Be7 {[%clk 0:02:59]} 5. Bg2 {[%clk 0:03:01]}  O-O {[%clk 0:02:59]} 6. O-O {[%clk 0:03:01]}  b6 {[%clk 0:02:59]} 7. Qc2 {[%clk 0:03:01]}  Bb7 {[%clk 0:03:00]} 8. Rd1 {[%clk 0:03:01]}  Nbd7 {[%clk 0:03:00]} 9. b3 {[%clk 0:03:00]}  c6 {[%clk 0:03:00]} 10. Bb2 {[%clk 0:03:01]}  Ne4 {[%clk 0:03:00]} 11. Nfd2 {[%clk 0:02:59]}  f5 {[%clk 0:02:52]} 12. f3 {[%clk 0:02:59]}  Nxd2 {[%clk 0:02:45]} 13. Nxd2 {[%clk 0:03:00]}  f4 {[%clk 0:02:45]} 14. Nf1 {[%clk 0:02:57]}  Bd6 {[%clk 0:02:43]} 15. e4 {[%clk 0:02:51]}  fxe3 {[%clk 0:02:42]} 16. Nxe3 {[%clk 0:02:50]}  c5 {[%clk 0:02:41]} 17. cxd5 {[%clk 0:02:46]}  exd5 {[%clk 0:02:41]} 18. Nf5 {[%clk 0:02:44]}  Qc7 {[%clk 0:02:34]} 19. dxc5 {[%clk 0:02:34]}  Bxc5+ {[%clk 0:02:33]} 20. Kh1 {[%clk 0:02:33]}  Nf6 {[%clk 0:02:33]} 21. Rac1 {[%clk 0:02:28]}  Qd7 {[%clk 0:02:28]} 22. Nd4 {[%clk 0:02:13]}  Rac8 {[%clk 0:02:20]} 23. Qd3 {[%clk 0:02:13]}  Rce8 {[%clk 0:02:16]} 24. Re1 {[%clk 0:02:12]}  Bb4 {[%clk 0:02:14]} 25. Rxe8 {[%clk 0:02:10]}  Rxe8 {[%clk 0:02:15]} 26. a3 {[%clk 0:02:10]}  Bc5 {[%clk 0:02:14]} 27. b4 {[%clk 0:02:09]}  Bf8 {[%clk 0:02:13]} 28. h4 {[%clk 0:01:59]}  Nh5 {[%clk 0:02:07]} 29. Kh2 {[%clk 0:01:57]}  Bc8 {[%clk 0:01:57]} 30. f4 {[%clk 0:01:47]}  Nf6 {[%clk 0:01:51]} 31. Nf3 {[%clk 0:01:43]}  Ng4+ {[%clk 0:01:50]} 32. Kg1 {[%clk 0:01:41]}  Ne3 {[%clk 0:01:47]} 33. Ne5 {[%clk 0:01:35]}  Rxe5 {[%clk 0:01:46]} 34. Bxe5 {[%clk 0:01:30]}  Nxg2 {[%clk 0:01:44]} 35. Kxg2 {[%clk 0:01:23]}  Qh3+ {[%clk 0:01:43]} 36. Kg1 {[%clk 0:01:24]}  d4 {[%clk 0:01:40]} 37. Qf3 {[%clk 0:00:58]}  Bb7 {[%clk 0:01:24]} 38. Qxb7 {[%clk 0:00:54]}  Qxg3+ {[%clk 0:01:23]} 39. Kf1 {[%clk 0:00:51]}  Qd3+ {[%clk 0:01:22]} 40. Kg2 {[%clk 0:00:38]}  Qd2+ {[%clk 0:01:22]} 41. Kg3 {[%clk 0:00:37]}  Qxc1 {[%clk 0:01:22]} 42. Qd5+ {[%clk 0:00:37]}  Kh8 {[%clk 0:01:21]} 43. Qd8 {[%clk 0:00:30]}  Qxa3+ {[%clk 0:01:20]} 44. Kg4 {[%clk 0:00:29]}  Qxb4 {[%clk 0:01:20]} 45. h5 {[%clk 0:00:29]}  Qe7 {[%clk 0:01:18]} 46. Qxd4 {[%clk 0:00:28]}  h6 {[%clk 0:01:16]} 47. f5 {[%clk 0:00:27]}  Qg5+ {[%clk 0:01:16]} 48. Kh3 {[%clk 0:00:23]}  Qxh5+ {[%clk 0:01:16]} 49. Kg3 {[%clk 0:00:24]}  Qg5+ {[%clk 0:01:16]} 50. Kh2 {[%clk 0:00:23]}  Qxf5 {[%clk 0:01:15]} 51. Bg3 {[%clk 0:00:23]}  Kh7 {[%clk 0:01:14]} 52. Qd8 {[%clk 0:00:20]}  Bc5 {[%clk 0:01:13]} 0-1


[Site "https://www.chess.com"]

[Event "Titled Tuesday Blitz April 4 Early 2023"]
[White "Demin, Vladimir"]
[Black "Goltseva, Ekaterina"]
[WhiteFideId "4167457"]
[BlackFideId "24173770"]
[WhiteElo "2546"]
[BlackElo "2200"]
[Result "1/2-1/2"]
[Round "08"]
[TimeControl "180+2"]
[Date "2023.04.04"]
[WhiteClock "0:00:10"]
[BlackClock "0:00:14"]

1. e4 {[%clk 0:02:51]}  e5 {[%clk 0:02:55]} 2. Nf3 {[%clk 0:02:51]}  Nc6 {[%clk 0:02:55]} 3. Nc3 {[%clk 0:02:52]}  Nf6 {[%clk 0:02:54]} 4. d4 {[%clk 0:02:52]}  exd4 {[%clk 0:02:54]} 5. Nxd4 {[%clk 0:02:53]}  Bb4 {[%clk 0:02:53]} 6. Nxc6 {[%clk 0:02:53]}  bxc6 {[%clk 0:02:53]} 7. Bd3 {[%clk 0:02:54]}  d5 {[%clk 0:02:52]} 8. exd5 {[%clk 0:02:54]}  cxd5 {[%clk 0:02:53]} 9. O-O {[%clk 0:02:54]}  O-O {[%clk 0:02:53]} 10. h3 {[%clk 0:02:54]}  Rb8 {[%clk 0:02:52]} 11. Be3 {[%clk 0:02:51]}  c5 {[%clk 0:02:39]} 12. a3 {[%clk 0:02:46]}  Bxc3 {[%clk 0:02:25]} 13. bxc3 {[%clk 0:02:47]}  Qa5 {[%clk 0:02:23]} 14. c4 {[%clk 0:02:15]}  Ba6 {[%clk 0:01:58]} 15. Bg5 {[%clk 0:01:35]}  Ne4 {[%clk 0:01:31]} 16. Bf4 {[%clk 0:01:24]}  Rbe8 {[%clk 0:01:20]} 17. cxd5 {[%clk 0:01:18]}  Nc3 {[%clk 0:01:17]} 18. Qd2 {[%clk 0:01:14]}  Ne2+ {[%clk 0:00:53]} 19. Kh1 {[%clk 0:00:54]}  Qxd2 {[%clk 0:00:44]} 20. Bxd2 {[%clk 0:00:55]}  Bxd3 {[%clk 0:00:41]} 21. cxd3 {[%clk 0:00:56]}  Rd8 {[%clk 0:00:38]} 22. Rae1 {[%clk 0:00:47]}  Nd4 {[%clk 0:00:36]} 23. Re7 {[%clk 0:00:45]}  Rxd5 {[%clk 0:00:36]} 24. Rxa7 {[%clk 0:00:44]}  Nb3 {[%clk 0:00:36]} 25. Be3 {[%clk 0:00:42]}  Rxd3 {[%clk 0:00:35]} 26. Rc7 {[%clk 0:00:41]}  Ra8 {[%clk 0:00:32]} 27. Rb1 {[%clk 0:00:34]}  h6 {[%clk 0:00:31]} 28. Bxc5 {[%clk 0:00:31]}  Nxc5 {[%clk 0:00:30]} 29. Rxc5 {[%clk 0:00:32]}  Rdxa3 {[%clk 0:00:29]} 30. Kh2 {[%clk 0:00:24]}  Ra2 {[%clk 0:00:29]} 31. f3 {[%clk 0:00:24]}  Re2 {[%clk 0:00:25]} 32. Rc7 {[%clk 0:00:18]}  Raa2 {[%clk 0:00:23]} 33. Rg1 {[%clk 0:00:18]}  g6 {[%clk 0:00:22]} 34. Rc4 {[%clk 0:00:18]}  Kg7 {[%clk 0:00:22]} 35. Rd4 {[%clk 0:00:17]}  h5 {[%clk 0:00:23]} 36. h4 {[%clk 0:00:17]}  Kf6 {[%clk 0:00:23]} 37. Kg3 {[%clk 0:00:17]}  Rec2 {[%clk 0:00:22]} 38. Rf4+ {[%clk 0:00:16]}  Kg7 {[%clk 0:00:23]} 39. Kh3 {[%clk 0:00:16]}  Re2 {[%clk 0:00:21]} 40. Rd4 {[%clk 0:00:15]}  Rab2 {[%clk 0:00:20]} 41. Rc4 {[%clk 0:00:15]}  Rbc2 {[%clk 0:00:20]} 42. Rxc2 {[%clk 0:00:15]}  Rxc2 {[%clk 0:00:21]} 43. Ra1 {[%clk 0:00:15]}  Rd2 {[%clk 0:00:21]} 44. Kg3 {[%clk 0:00:15]}  Rc2 {[%clk 0:00:22]} 45. Rg1 {[%clk 0:00:14]}  Rd2 {[%clk 0:00:22]} 46. Kf4 {[%clk 0:00:14]}  Rd4+ {[%clk 0:00:22]} 47. Kg3 {[%clk 0:00:15]}  Rd2 {[%clk 0:00:22]} 48. Rc1 {[%clk 0:00:15]}  Rb2 {[%clk 0:00:21]} 49. Rc7 {[%clk 0:00:15]}  Rd2 {[%clk 0:00:21]} 50. Kh3 {[%clk 0:00:16]}  Ra2 {[%clk 0:00:22]} 51. g4 {[%clk 0:00:16]}  Ra3 {[%clk 0:00:20]} 52. Kg3 {[%clk 0:00:15]}  hxg4 {[%clk 0:00:20]} 53. Kxg4 {[%clk 0:00:16]}  Ra4+ {[%clk 0:00:20]} 54. f4 {[%clk 0:00:15]}  Kf6 {[%clk 0:00:19]} 55. Rc6+ {[%clk 0:00:15]}  Kg7 {[%clk 0:00:20]} 56. Rb6 {[%clk 0:00:15]}  Rc4 {[%clk 0:00:19]} 57. Rb5 {[%clk 0:00:15]}  Ra4 {[%clk 0:00:18]} 58. h5 {[%clk 0:00:15]}  gxh5+ {[%clk 0:00:18]} 59. Rxh5 {[%clk 0:00:15]}  Kf6 {[%clk 0:00:18]} 60. Rh6+ {[%clk 0:00:14]}  Kg7 {[%clk 0:00:18]} 61. Rb6 {[%clk 0:00:15]}  Rc4 {[%clk 0:00:18]} 62. Kg5 {[%clk 0:00:15]}  Rc1 {[%clk 0:00:17]} 63. Rb7 {[%clk 0:00:15]}  Rg1+ {[%clk 0:00:18]} 64. Kf5 {[%clk 0:00:15]}  Re1 {[%clk 0:00:18]} 65. Rc7 {[%clk 0:00:14]}  Re2 {[%clk 0:00:18]} 66. Rc3 {[%clk 0:00:14]}  Re1 {[%clk 0:00:18]} 67. Rg3+ {[%clk 0:00:14]}  Kf8 {[%clk 0:00:18]} 68. Rh3 {[%clk 0:00:13]}  Ke7 {[%clk 0:00:17]} 69. Ra3 {[%clk 0:00:13]}  Rg1 {[%clk 0:00:17]} 70. Ra7+ {[%clk 0:00:12]}  Kf8 {[%clk 0:00:17]} 71. Ra6 {[%clk 0:00:09]}  Kg7 {[%clk 0:00:17]} 72. Rb6 {[%clk 0:00:10]}  Rg2 {[%clk 0:00:17]} 73. Rb3 {[%clk 0:00:09]}  Rg1 {[%clk 0:00:17]} 74. Rh3 {[%clk 0:00:09]}  Rg2 {[%clk 0:00:18]} 75. Ra3 {[%clk 0:00:08]}  Rg1 {[%clk 0:00:18]} 76. Ra7 {[%clk 0:00:09]}  Rg2 {[%clk 0:00:18]} 77. Ke5 {[%clk 0:00:09]}  Re2+ {[%clk 0:00:18]} 78. Kf5 {[%clk 0:00:09]}  Rg2 {[%clk 0:00:18]} 79. Ra3 {[%clk 0:00:09]}  Rg1 {[%clk 0:00:18]} 80. Rh3 {[%clk 0:00:09]}  Rg2 {[%clk 0:00:19]} 81. Rh5 {[%clk 0:00:09]}  Rg1 {[%clk 0:00:18]} 82. Rg5+ {[%clk 0:00:08]}  Rxg5+ {[%clk 0:00:17]} 83. fxg5 {[%clk 0:00:09]}  Kg8 {[%clk 0:00:14]} 84. Kf6 {[%clk 0:00:08]}  Kf8 {[%clk 0:00:14]} 85. g6 {[%clk 0:00:09]}  fxg6 {[%clk 0:00:14]} 86. Kxg6 {[%clk 0:00:10]} 1/2-1/2


[Site "https://www.chess.com"]

[Event "Titled Tuesday Blitz April 4 Early 2023"]
[White "Moral Garcia, Serafin"]
[Black "Staudenhocker43"]
[WhiteFideId "2201925"]
[WhiteElo "2274"]
[BlackElo "2543"]
[Result "1-0"]
[Round "08"]
[TimeControl "180+2"]
[Date "2023.04.04"]
[WhiteClock "0:00:49"]
[BlackClock "0:00:03"]

1. c4 {[%clk 0:03:00]}  c5 {[%clk 0:02:57]} 2. Nc3 {[%clk 0:03:00]}  Nc6 {[%clk 0:02:57]} 3. g3 {[%clk 0:03:00]}  g6 {[%clk 0:02:58]} 4. Bg2 {[%clk 0:03:00]}  Bg7 {[%clk 0:02:58]} 5. a3 {[%clk 0:02:59]}  e6 {[%clk 0:02:56]} 6. Rb1 {[%clk 0:02:59]}  a5 {[%clk 0:02:50]} 7. e3 {[%clk 0:02:56]}  Nge7 {[%clk 0:02:49]} 8. Nge2 {[%clk 0:02:57]}  O-O {[%clk 0:02:49]} 9. O-O {[%clk 0:02:55]}  d5 {[%clk 0:02:48]} 10. d3 {[%clk 0:02:51]}  b6 {[%clk 0:02:44]} 11. Qb3 {[%clk 0:02:49]}  dxc4 {[%clk 0:02:22]} 12. dxc4 {[%clk 0:02:47]}  Ba6 {[%clk 0:02:16]} 13. Nb5 {[%clk 0:02:36]}  Rb8 {[%clk 0:01:56]} 14. Rd1 {[%clk 0:02:34]}  Qc8 {[%clk 0:01:55]} 15. Bd2 {[%clk 0:02:31]}  Ne5 {[%clk 0:01:40]} 16. Bc3 {[%clk 0:02:29]}  Rd8 {[%clk 0:01:39]} 17. Rxd8+ {[%clk 0:02:27]}  Qxd8 {[%clk 0:01:39]} 18. Rd1 {[%clk 0:02:27]}  Qe8 {[%clk 0:01:29]} 19. Nd6 {[%clk 0:02:20]}  Qf8 {[%clk 0:01:23]} 20. f4 {[%clk 0:02:18]}  Ng4 {[%clk 0:01:18]} 21. Bxg7 {[%clk 0:02:16]}  Qxg7 {[%clk 0:01:19]} 22. h3 {[%clk 0:02:16]}  Nf6 {[%clk 0:01:16]} 23. e4 {[%clk 0:02:06]}  Qf8 {[%clk 0:01:15]} 24. e5 {[%clk 0:02:05]}  Ne8 {[%clk 0:01:14]} 25. Nc3 {[%clk 0:02:01]}  Nxd6 {[%clk 0:01:07]} 26. Rxd6 {[%clk 0:01:53]}  Nc8 {[%clk 0:01:06]} 27. Rd2 {[%clk 0:01:46]}  Qe7 {[%clk 0:01:05]} 28. Ne4 {[%clk 0:01:45]}  Kg7 {[%clk 0:00:38]} 29. Nf6 {[%clk 0:01:44]}  b5 {[%clk 0:00:32]} 30. Rd7 {[%clk 0:01:37]}  Qf8 {[%clk 0:00:29]} 31. Qd1 {[%clk 0:01:33]}  Nb6 {[%clk 0:00:26]} 32. Ra7 {[%clk 0:01:29]}  Qc8 {[%clk 0:00:19]} 33. cxb5 {[%clk 0:01:25]}  Bxb5 {[%clk 0:00:19]} 34. Qd6 {[%clk 0:01:21]}  Qd8 {[%clk 0:00:11]} 35. Qxc5 {[%clk 0:01:17]}  Na4 {[%clk 0:00:07]} 36. Qf2 {[%clk 0:01:13]}  Nxb2 {[%clk 0:00:05]} 37. g4 {[%clk 0:01:12]}  Nd3 {[%clk 0:00:04]} 38. Qe3 {[%clk 0:01:09]}  Bc4 {[%clk 0:00:04]} 39. Kh2 {[%clk 0:01:02]}  Rb2 {[%clk 0:00:04]} 40. Rd7 {[%clk 0:00:51]}  Qa8 {[%clk 0:00:03]} 41. Ne4 {[%clk 0:00:49]} 1-0


[Site "https://www.chess.com"]

[Event "Titled Tuesday Blitz April 4 Early 2023"]
[White "Avazkhonov, Alikhon"]
[Black "Gubajdullin, Alexei"]
[WhiteFideId "14208504"]
[BlackFideId "4141202"]
[WhiteElo "1739"]
[BlackElo "2279"]
[Result "0-1"]
[Round "08"]
[TimeControl "180+2"]
[Date "2023.04.04"]
[WhiteClock "0:00:02"]
[BlackClock "0:01:28"]

1. d4 {[%clk 0:03:00]}  Nf6 {[%clk 0:02:59]} 2. c4 {[%clk 0:03:00]}  g6 {[%clk 0:02:59]} 3. Nc3 {[%clk 0:02:59]}  Bg7 {[%clk 0:02:59]} 4. e4 {[%clk 0:03:00]}  d6 {[%clk 0:02:59]} 5. f3 {[%clk 0:03:00]}  O-O {[%clk 0:03:00]} 6. Be3 {[%clk 0:03:01]}  Nc6 {[%clk 0:03:00]} 7. Qd2 {[%clk 0:03:01]}  Rb8 {[%clk 0:03:01]} 8. Nge2 {[%clk 0:03:02]}  a6 {[%clk 0:03:01]} 9. h4 {[%clk 0:03:01]}  h5 {[%clk 0:03:00]} 10. Rc1 {[%clk 0:02:56]}  Nd7 {[%clk 0:02:58]} 11. Ng3 {[%clk 0:02:48]}  e5 {[%clk 0:02:53]} 12. d5 {[%clk 0:02:48]}  Nd4 {[%clk 0:02:53]} 13. Nge2 {[%clk 0:02:44]}  c5 {[%clk 0:02:53]} 14. dxc6 {[%clk 0:02:39]}  bxc6 {[%clk 0:02:52]} 15. b3 {[%clk 0:02:23]}  Qf6 {[%clk 0:02:35]} 16. Bg5 {[%clk 0:02:04]}  Qe6 {[%clk 0:02:35]} 17. Nxd4 {[%clk 0:02:04]}  exd4 {[%clk 0:02:35]} 18. Ne2 {[%clk 0:02:05]}  d5 {[%clk 0:02:24]} 19. cxd5 {[%clk 0:01:54]}  cxd5 {[%clk 0:02:24]} 20. Nf4 {[%clk 0:01:52]}  Qe8 {[%clk 0:02:18]} 21. Nxd5 {[%clk 0:01:52]}  Bb7 {[%clk 0:02:17]} 22. Be2 {[%clk 0:00:51]}  Bxd5 {[%clk 0:02:02]} 23. exd5 {[%clk 0:00:52]}  Rb5 {[%clk 0:02:02]} 24. d6 {[%clk 0:00:45]}  Re5 {[%clk 0:02:01]} 25. Kf2 {[%clk 0:00:45]}  Nc5 {[%clk 0:01:51]} 26. Bf4 {[%clk 0:00:36]}  Rf5 {[%clk 0:01:51]} 27. Rhe1 {[%clk 0:00:20]}  Bh6 {[%clk 0:01:51]} 28. Bxh6 {[%clk 0:00:08]}  Ne4+ {[%clk 0:01:51]} 29. Kg1 {[%clk 0:00:08]}  Nxd2 {[%clk 0:01:50]} 30. Bxd2 {[%clk 0:00:09]}  Qd8 {[%clk 0:01:44]} 31. Bb4 {[%clk 0:00:07]}  a5 {[%clk 0:01:44]} 32. Ba3 {[%clk 0:00:06]}  Re8 {[%clk 0:01:40]} 33. Bd3 {[%clk 0:00:06]}  Rfe5 {[%clk 0:01:40]} 34. Rxe5 {[%clk 0:00:06]}  Rxe5 {[%clk 0:01:39]} 35. f4 {[%clk 0:00:06]}  Re3 {[%clk 0:01:39]} 36. Bb5 {[%clk 0:00:05]}  d3 {[%clk 0:01:30]} 37. d7 {[%clk 0:00:05]}  d2 {[%clk 0:01:30]} 38. Rf1 {[%clk 0:00:02]}  Re1 {[%clk 0:01:28]} 0-1


[Site "https://www.chess.com"]

[Event "Titled Tuesday Blitz April 4 Early 2023"]
[White "Gatterer, Florian"]
[Black "Martic, Ivan"]
[WhiteFideId "811688"]
[BlackFideId "929301"]
[WhiteElo "2221"]
[BlackElo "2360"]
[Result "0-1"]
[Round "08"]
[TimeControl "180+2"]
[Date "2023.04.04"]
[WhiteClock "0:00:02"]
[BlackClock "0:00:36"]

1. c4 {[%clk 0:03:00]}  g6 {[%clk 0:02:56]} 2. g3 {[%clk 0:02:56]}  Bg7 {[%clk 0:02:56]} 3. Bg2 {[%clk 0:02:56]}  d6 {[%clk 0:02:54]} 4. d4 {[%clk 0:02:55]}  Nf6 {[%clk 0:02:52]} 5. Nf3 {[%clk 0:02:52]}  O-O {[%clk 0:02:53]} 6. O-O {[%clk 0:02:52]}  Nc6 {[%clk 0:02:54]} 7. Nc3 {[%clk 0:02:50]}  a6 {[%clk 0:02:54]} 8. Bf4 {[%clk 0:02:47]}  Nh5 {[%clk 0:02:46]} 9. Be3 {[%clk 0:02:46]}  f5 {[%clk 0:02:36]} 10. d5 {[%clk 0:02:39]}  Ne5 {[%clk 0:02:35]} 11. Nxe5 {[%clk 0:02:33]}  dxe5 {[%clk 0:02:35]} 12. f4 {[%clk 0:02:27]}  e4 {[%clk 0:02:24]} 13. Bd4 {[%clk 0:02:19]}  Nf6 {[%clk 0:02:16]} 14. e3 {[%clk 0:02:08]}  e6 {[%clk 0:02:16]} 15. Qb3 {[%clk 0:01:57]}  exd5 {[%clk 0:02:12]} 16. cxd5 {[%clk 0:01:57]}  Kh8 {[%clk 0:02:11]} 17. Rad1 {[%clk 0:01:54]}  Rb8 {[%clk 0:01:54]} 18. Be5 {[%clk 0:01:54]}  Nd7 {[%clk 0:01:48]} 19. Bxg7+ {[%clk 0:01:41]}  Kxg7 {[%clk 0:01:49]} 20. Qc4 {[%clk 0:01:41]}  Nf6 {[%clk 0:01:41]} 21. a4 {[%clk 0:01:22]}  Qd6 {[%clk 0:01:40]} 22. b4 {[%clk 0:01:18]}  Bd7 {[%clk 0:01:39]} 23. h3 {[%clk 0:01:16]}  b5 {[%clk 0:01:33]} 24. axb5 {[%clk 0:00:46]}  Bxb5 {[%clk 0:01:34]} 25. Nxb5 {[%clk 0:00:46]}  Rxb5 {[%clk 0:01:34]} 26. Rc1 {[%clk 0:00:46]}  Rf7 {[%clk 0:01:30]} 27. Ra1 {[%clk 0:00:31]}  Qxb4 {[%clk 0:01:10]} 28. Qxb4 {[%clk 0:00:18]}  Rxb4 {[%clk 0:01:11]} 29. Rfd1 {[%clk 0:00:17]}  Rb6 {[%clk 0:01:08]} 30. Bf1 {[%clk 0:00:17]}  Rd7 {[%clk 0:01:03]} 31. Bc4 {[%clk 0:00:17]}  Rdd6 {[%clk 0:00:54]} 32. Ra5 {[%clk 0:00:16]}  Rb4 {[%clk 0:00:53]} 33. Ba2 {[%clk 0:00:15]}  Rb2 {[%clk 0:00:52]} 34. Bc4 {[%clk 0:00:12]}  Rc2 {[%clk 0:00:47]} 35. Bxa6 {[%clk 0:00:11]}  c6 {[%clk 0:00:44]} 36. Bb7 {[%clk 0:00:03]}  Rxd5 {[%clk 0:00:41]} 37. Rdxd5 {[%clk 0:00:02]}  Nxd5 {[%clk 0:00:42]} 38. Bxc6 {[%clk 0:00:02]}  Nxe3 {[%clk 0:00:42]} 39. Ra7+ {[%clk 0:00:02]}  Kf6 {[%clk 0:00:38]} 40. g4 {[%clk 0:00:02]}  Rxc6 {[%clk 0:00:36]} 0-1


[Site "https://www.chess.com"]

[Event "Titled Tuesday Blitz April 4 Early 2023"]
[White "Tarasova, Viktoriya"]
[Black "Jain Kashish Manoj"]
[WhiteFideId "4175840"]
[BlackFideId "35081098"]
[WhiteElo "2182"]
[BlackElo "2191"]
[Result "0-1"]
[Round "08"]
[TimeControl "180+2"]
[Date "2023.04.04"]
[WhiteClock "0:00:01"]
[BlackClock "0:00:04"]

1. d4 {[%clk 0:02:37]}  f5 {[%clk 0:02:57]} 2. c4 {[%clk 0:02:37]}  g6 {[%clk 0:02:57]} 3. g3 {[%clk 0:02:38]}  Bg7 {[%clk 0:02:57]} 4. Bg2 {[%clk 0:02:39]}  Nh6 {[%clk 0:02:57]} 5. Nf3 {[%clk 0:02:39]}  Nf7 {[%clk 0:02:57]} 6. O-O {[%clk 0:02:40]}  O-O {[%clk 0:02:57]} 7. Nc3 {[%clk 0:02:41]}  d6 {[%clk 0:02:53]} 8. Qc2 {[%clk 0:02:41]}  c6 {[%clk 0:02:51]} 9. b3 {[%clk 0:02:41]}  e5 {[%clk 0:02:51]} 10. dxe5 {[%clk 0:02:40]}  dxe5 {[%clk 0:02:52]} 11. e4 {[%clk 0:02:41]}  Na6 {[%clk 0:02:34]} 12. Ba3 {[%clk 0:02:39]}  Re8 {[%clk 0:02:32]} 13. Rad1 {[%clk 0:02:34]}  Qf6 {[%clk 0:02:30]} 14. h3 {[%clk 0:02:27]}  Nc7 {[%clk 0:02:23]} 15. Rfe1 {[%clk 0:02:26]}  Ne6 {[%clk 0:02:09]} 16. Ne2 {[%clk 0:02:06]}  Neg5 {[%clk 0:01:20]} 17. Nxg5 {[%clk 0:01:50]}  Nxg5 {[%clk 0:01:21]} 18. h4 {[%clk 0:01:51]}  Nf7 {[%clk 0:01:14]} 19. Nc3 {[%clk 0:01:44]}  f4 {[%clk 0:01:11]} 20. Rd3 {[%clk 0:01:44]}  Bg4 {[%clk 0:01:07]} 21. Kh2 {[%clk 0:01:04]}  g5 {[%clk 0:01:02]} 22. hxg5 {[%clk 0:00:56]}  Nxg5 {[%clk 0:01:03]} 23. Rd6 {[%clk 0:00:55]}  Re6 {[%clk 0:00:57]} 24. Rxe6 {[%clk 0:00:52]}  Nxe6 {[%clk 0:00:58]} 25. Kg1 {[%clk 0:00:24]}  Nd4 {[%clk 0:00:54]} 26. Qd3 {[%clk 0:00:24]}  f3 {[%clk 0:00:53]} 27. Bf1 {[%clk 0:00:22]}  Rd8 {[%clk 0:00:53]} 28. Qb1 {[%clk 0:00:20]}  Bh6 {[%clk 0:00:51]} 29. Nd1 {[%clk 0:00:19]}  Bd2 {[%clk 0:00:41]} 30. Ne3 {[%clk 0:00:16]}  h5 {[%clk 0:00:39]} 31. Rd1 {[%clk 0:00:15]}  Bxe3 {[%clk 0:00:39]} 32. fxe3 {[%clk 0:00:15]}  f2+ {[%clk 0:00:39]} 33. Kh2 {[%clk 0:00:14]}  Bxd1 {[%clk 0:00:33]} 34. exd4 {[%clk 0:00:14]}  Rxd4 {[%clk 0:00:33]} 35. Bb2 {[%clk 0:00:13]}  h4 {[%clk 0:00:23]} 36. Bxd4 {[%clk 0:00:12]}  hxg3+ {[%clk 0:00:23]} 37. Kxg3 {[%clk 0:00:12]}  Qf4+ {[%clk 0:00:16]} 38. Kg2 {[%clk 0:00:06]}  Bf3+ {[%clk 0:00:15]} 39. Kh3 {[%clk 0:00:02]}  Qg4+ {[%clk 0:00:09]} 40. Kh2 {[%clk 0:00:02]}  Qg1+ {[%clk 0:00:08]} 41. Kh3 {[%clk 0:00:02]}  Bg2+ {[%clk 0:00:06]} 42. Kh4 {[%clk 0:00:02]}  Bxf1 {[%clk 0:00:04]} 43. Qc1 {[%clk 0:00:02]}  Qh1+ {[%clk 0:00:03]} 44. Kg5 {[%clk 0:00:01]}  Qg2+ {[%clk 0:00:03]} 45. Kf6 {[%clk 0:00:01]}  Qf3+ {[%clk 0:00:03]} 46. Ke7 {[%clk 0:00:01]}  exd4 {[%clk 0:00:03]} 47. Qg5+ {[%clk 0:00:01]}  Kh7 {[%clk 0:00:03]} 48. Qh4+ {[%clk 0:00:01]}  Kg6 {[%clk 0:00:04]} 0-1


[Site "https://www.chess.com"]

[Event "Titled Tuesday Blitz April 4 Early 2023"]
[White "Dixit, Nikhil"]
[Black "Rios Escobar, Adan"]
[WhiteFideId "5059534"]
[BlackFideId "3403645"]
[WhiteElo "2207"]
[BlackElo "2404"]
[Result "0-1"]
[Round "08"]
[TimeControl "180+2"]
[Date "2023.04.04"]
[WhiteClock "0:00:50"]
[BlackClock "0:00:03"]

1. e4 {[%clk 0:03:00]}  c5 {[%clk 0:02:56]} 2. Nf3 {[%clk 0:03:01]}  d6 {[%clk 0:02:56]} 3. Bb5+ {[%clk 0:03:01]}  Nd7 {[%clk 0:02:56]} 4. Bxd7+ {[%clk 0:03:02]}  Bxd7 {[%clk 0:02:55]} 5. O-O {[%clk 0:03:03]}  e6 {[%clk 0:02:51]} 6. c3 {[%clk 0:03:02]}  Ne7 {[%clk 0:02:46]} 7. d4 {[%clk 0:03:01]}  Ng6 {[%clk 0:02:41]} 8. d5 {[%clk 0:02:58]}  Be7 {[%clk 0:02:31]} 9. Nbd2 {[%clk 0:02:50]}  O-O {[%clk 0:02:30]} 10. Nc4 {[%clk 0:02:48]}  b5 {[%clk 0:02:20]} 11. Ne3 {[%clk 0:02:44]}  a5 {[%clk 0:02:15]} 12. g3 {[%clk 0:02:27]}  Re8 {[%clk 0:01:43]} 13. h4 {[%clk 0:02:24]}  Nf8 {[%clk 0:01:35]} 14. e5 {[%clk 0:02:17]}  exd5 {[%clk 0:01:30]} 15. exd6 {[%clk 0:02:04]}  Bxd6 {[%clk 0:01:29]} 16. Qxd5 {[%clk 0:02:04]}  Qc7 {[%clk 0:01:20]} 17. Nf5 {[%clk 0:01:55]}  Bxf5 {[%clk 0:01:07]} 18. Qxf5 {[%clk 0:01:56]}  Bxg3 {[%clk 0:01:05]} 19. fxg3 {[%clk 0:01:38]}  Qxg3+ {[%clk 0:01:06]} 20. Kh1 {[%clk 0:01:39]}  g6 {[%clk 0:00:42]} 21. Qf4 {[%clk 0:01:33]}  Qh3+ {[%clk 0:00:39]} 22. Kg1 {[%clk 0:01:31]}  Re2 {[%clk 0:00:36]} 23. Qxf7+ {[%clk 0:01:26]}  Kh8 {[%clk 0:00:13]} 24. Qf6+ {[%clk 0:01:19]}  Kg8 {[%clk 0:00:14]} 25. Qg5 {[%clk 0:01:16]}  Rae8 {[%clk 0:00:09]} 26. Bf4 {[%clk 0:01:13]}  Ne6 {[%clk 0:00:08]} 27. Qg3 {[%clk 0:01:03]}  Nxf4 {[%clk 0:00:09]} 28. Qxh3 {[%clk 0:01:02]}  Nxh3+ {[%clk 0:00:10]} 29. Kh1 {[%clk 0:01:03]}  Rxb2 {[%clk 0:00:07]} 30. Rad1 {[%clk 0:01:01]}  Ree2 {[%clk 0:00:07]} 31. Rd7 {[%clk 0:00:59]}  Nf2+ {[%clk 0:00:04]} 32. Kg2 {[%clk 0:00:57]}  Ne4+ {[%clk 0:00:02]} 33. Kh3 {[%clk 0:00:56]}  Re3 {[%clk 0:00:02]} 34. Ra7 {[%clk 0:00:52]}  h6 {[%clk 0:00:02]} 35. Kg4 {[%clk 0:00:50]}  Nf6+ {[%clk 0:00:02]} 36. Kf4 {[%clk 0:00:51]}  Re4+ {[%clk 0:00:02]} 37. Kg3 {[%clk 0:00:51]}  Nh5+ {[%clk 0:00:02]} 38. Kh3 {[%clk 0:00:52]}  Nf4+ {[%clk 0:00:02]} 39. Kg3 {[%clk 0:00:50]}  Rg2# {[%clk 0:00:03]} 0-1


[Site "https://www.chess.com"]